Workbook

Sheet 접수증
B4: A/S(수리) 내역서 | K4: 6
B6: 접수번호 | C6: 100 | D6: 접수일자 | E6: 2021-01-01
B7: 고객명 | C7: 박경희 | D7: 연락처 | E7: 010-2222-5555
B8: 주소 | C8: 덕소로 33-3
B10: 내용 | C10: 파워불량
B12: 매입가 | C12: 45000 | D12: 수익 | E12: =IFERROR(C13-C12,0) -> 5000
B13: 납 품 가 | C13: 50000 | D13: 수익율 | E13: =IFERROR(E12/C13,0) -> 0.1
B14: 구분 | C14: 삼성
B15: 비고 | C15: 이쁜 아가씨
B16: 결제 | C16: 현금
B18: A/S(수리) 접수증
B20: 접수번호 | C20: =C6 -> 100 | D20: 접수일자 | E20: =E6 -> 2021-01-01
B21: 고객명 | C21: =C7 -> 박경희 | D21: 연락처 | E21: =E7 -> 010-2222-5555
B22: 주소 | C22: =C8 -> 덕소로 33-3
B24: 내용 | C24: =C10 -> 파워불량
B26: 1. 본 접수증을 잘 보관하시기 바랍니다.
B27: 2. 기타 문의사항은010-4251-2580 으로 연락 주세요.
B29: A/S(수리) 접수증 (컴퓨터용)
B31: 접수번호 | C31: =C20 -> 100 | D31: 접수일자 | E31: =E6 -> 2021-01-01
B32: 고객명 | C32: =C7 -> 박경희 | D32: 연락처 | E32: =E7 -> 010-2222-5555
B33: 주소 | C33: =C8 -> 덕소로 33-3
B35: 내용 | C35: =C10 -> 파워불량
B37: 1. 본 접수증을 컴퓨터에 잘 부착하여 주시기 바랍니다.
B38: =B27 -> 2. 기타 문의사항은010-4251-2580 으로 연락 주세요.

Sheet 접수데이터
A1: 접수번호 | B1: 일 자 | C1: 고객명 | D1: 연 락 처 | E1: 주 소 | F1: 내 역 | G1: 매 입 가 | H1: 납 품 가 | I1: 수 익 | J1: 수익율 | K1: 구 분 | L1: 비 고 | M1: 결 제
A2: 1 | B2: 2021-01-01 | C2: 박경희 | D2: 010-4251-2580 | E2: 덕소로 33-3 | F2: 매인보드 불량 | G2: 200000 | I2: 120000 | J2: 0.5
A3: 2 | B3: 2021-01-02 | C3: 박희경 | D3: 010-4251-2580 | E3: 덕소로 33-3 | F3: 매인보드 불량 | G3: 10000 | H3: 15000 | I3: 700000 | J3: 0.1
A4: 3 | B4: 2021-01-03 | C4: 박경희 | D4: 010-4251-2580 | E4: 덕소로 33-3 | F4: 매인보드 불량 | G4: 300000 | H4: 350000 | I4: 150000 | J4: 0 | L4: 이쁜 아가씨 | M4: 현금
A5: 4 | B5: 2021-01-04 | C5: 박희경 | D5: 010-4251-2580 | E5: 덕소로 33-3 | F5: 매인보드 불량 | G5: 90000 | H5: 100000 | I5: 10000 | J5: 0.1 | K5: 시케이드 하드 | L5: 3TB | M5: 현금
A6: 5 | B6: 2021-01-05 | C6: 박경희 | D6: 010-4251-2580 | E6: 덕소로 33-3 | F6: 매인보드 불량 | G6: 45000 | H6: 50000 | I6: 5000 | J6: 0.1 | K6: 삼성 | L6: 이쁜 아가씨 | M6: 현금

Sheet 고객카드
C1: 밀레니엄컴퓨터 A/S 고객카드
A2: N( ) | B2: R( )
A3: No | B3: =접수증!C6 -> 100
A4: 고객성명 | B4: =접수증!C7 -> 박경희 | D4: 전화번호 | E4: =접수증!E7 -> 010-2222-5555
A5: 접수일 | B5: =접수증!E6 -> 2021-01-01 | D5: 경로분류 | E5: 신규, 단골, 광고, 소개 ( )
A6: 예약일시 | B6: 20 년 월 일 요일 오전, 오후 ( )시
A7: 주 소 | B7: =접수증!C8 -> 덕소로 33-3
A8: 접수분류 | B8: 컴퓨터본체 / 모니터 / 노트북 / 닌텐도 / 기타 ( )
A9: 접수내용 | B9: =접수증!C10 -> 파워불량
A10: ☞ 아래 내용을 반드시 확인하시고 서명부탁 드립니다. ☜ 고객명 ( ) 서명 ( )
A11: 공지사항 | B11: - HDD 및 메인보드 교체시에나 윈도우 포멧후 재설치 또는.. - 각종 소프트웨어 재설치시 저장된 모든 자료가 삭제될수 있습니다. - 중요데이터 백업이 필요한 경우에는 별도로 추가비용이 발생합니다.
A12: A/S 보증 | B12: - S/W 문제(포멧등..)로 서비스를 받아신 경우 받으신 날로부터 3일입니다. - 제품판매 및 부품 교체시 중고부품은 3개월 신제품은 12개월입니다.
A14: [PC기본점검사항] - (A)상태양호 - (B)차후점검요망 - (X)불량 점검엔지니어 ( )
A16: PC 고장증상 확인 및 고장원인 진단 사 항 | B16: 메인보드 | D16: 각 종 부품 및 쿨링팬 상태 | E16: CPU 쿨러
B17: 메모리 | E17: 그래픽카드쿨러
B18: 그래픽카드 | E18: 내부청결상태
B19: 하드디스크 | E19: 파워출력
B20: 윈도우부팅 | E20: CD-ROM 열림
B21: 기타 | E21: 키보드, 마우스
B22: 전원불/부팅불/화면무 인터넷X/소음발생/S/W오류/멈춤/화면깨짐/불루스크린 속도느림/기타부품불량확인/바이러스감염/OS에러/기타 ( )
B23: 드라이버설치 - 메인보드( ) / 그래픽 ( ) / 사운드 ( ) / 랜카드 ( ) / 기타장치 ( )
A25: [서비스내역서-영수증] 제품수리 / 신품교체판매 / 부품업그레이드
A27: 서비스 & 판매내역 및 참고사항 | B27: 처 리 내 역 | F27: 금 액
B28: 1
B29: 2
B30: 3
B31: 4
B32: 5
B33: 20 년 월 일 | E33: 총영수금액 | F33: =SUM(F28:F32) -> 0
A34: 고객확인 | B34: A/S 및 제품설치완료 확인 : (인) 담당자확인 : (인)
A35: 입금계좌 | B35: 농협 : 204044-52-033018 예금주 : 박 경 희
A36: 밀레니엄컴퓨터 TEL : 521-9300 / Fax : 521-9301

Sheet 고객카드(수동)
C1: 밀레니엄컴퓨터 A/S 고객카드
A2: N( ) | B2: R( )
A3: No
A4: 고객성명 | D4: 전화번호
A5: 접수일 | D5: 경로분류 | E5: 신규, 단골, 광고, 소개 ( )
A6: 예약일시 | B6: 20 년 월 일 요일 오전, 오후 ( )시
A7: 주 소
A8: 접수분류 | B8: 컴퓨터본체 / 모니터 / 노트북 / 닌텐도 / 기타 ( )
A9: 접수내용
A10: ☞ 아래 내용을 반드시 확인하시고 서명부탁 드립니다. ☜ 고객명 ( ) 서명 ( )
A11: 공지사항 | B11: - HDD 및 메인보드 교체시에나 윈도우 포멧후 재설치 또는.. - 각종 소프트웨어 재설치시 저장된 모든 자료가 삭제될수 있습니다. - 중요데이터 백업이 필요한 경우에는 별도로 추가비용이 발생합니다.
A12: A/S 보증 | B12: - S/W 문제(포멧등..)로 서비스를 받아신 경우 받으신 날로부터 3일입니다. - 제품판매 및 부품 교체시 중고부품은 3개월 신제품은 12개월입니다.
A14: [PC기본점검사항] - (A)상태양호 - (B)차후점검요망 - (X)불량 점검엔지니어 ( )
A16: PC 고장증상 확인 및 고장원인 진단 사 항 | B16: 메인보드 | D16: 각 종 부품 및 쿨링팬 상태 | E16: CPU 쿨러
B17: 메모리 | E17: 그래픽카드쿨러
B18: 그래픽카드 | E18: 내부청결상태
B19: 하드디스크 | E19: 파워출력
B20: 윈도우부팅 | E20: CD-ROM 열림
B21: 기타 | E21: 키보드, 마우스
B22: 전원불/부팅불/화면무 인터넷X/소음발생/S/W오류/멈춤/화면깨짐/불루스크린 속도느림/기타부품불량확인/바이러스감염/OS에러/기타 ( )
B23: 드라이버설치 - 메인보드( ) / 그래픽 ( ) / 사운드 ( ) / 랜카드 ( ) / 기타장치 ( )
A25: [서비스내역서-영수증] 제품수리 / 신품교체판매 / 부품업그레이드
A27: 서비스 & 판매내역 및 참고사항 | B27: 처 리 내 역 | F27: 금 액
B28: 1
B29: 2
B30: 3
B31: 4
B32: 5
B33: 20 년 월 일 | E33: 총영수금액 | F33: =SUM(F28:F32) -> 0
A34: 고객확인 | B34: A/S 및 제품설치완료 확인 : (인) 담당자확인 : (인)
A35: 입금계좌 | B35: 농 협 : 204044-52-033018 예금주 : 박 경 희
A36: 밀레니엄컴퓨터 TEL : 521-9300 / Fax : 521-9301

Sheet 거래명세표
B2: 권 | E2: 호 | G2: 거 래 명 세 표 | V2: =B2 -> 권 | Y2: =E2 -> 호 | AA2: 거 래 명 세 표
B3: 2025-07-11 | H3: 공급자 | I3: 등 록 번 호 | J3: 132-19-97819 | V3: =B3 -> 2025-07-11 | AB3: 공급자 | AC3: 등 록 번 호 | AD3: =J3 -> 132-19-97819
B4: 주식회사 선일종합건설 | I4: 상 호 | J4: 밀레니엄컴퓨터 | N4: 성명 | O4: 박 경 희 | V4: =B4 -> 주식회사 선일종합건설 | AC4: 상 호 | AD4: =J4 -> 밀레니엄컴퓨터 | AH4: 성명 | AI4: =O4 -> 박 경 희
B5: 아래와 같이 계산합니다 | I5: 사업장주 소 | J5: 남양주시 와부읍 덕소로 33-3 1층 103호 | V5: 아래와 같이 계산합니다 | AC5: 사업장주 소 | AD5: =J5 -> 남양주시 와부읍 덕소로 33-3 1층 103호
I6: 업 태 | J6: 도매및소매업 | N6: 종목 | O6: 사무기기소프트웨어 | AC6: 업 태 | AD6: =J6 -> 도매및소매업 | AH6: 종목 | AI6: =O6 -> 사무기기소프트웨어
B7: 합계금액 | E7: 일금 | G7: =M7 -> 3417700 | K7: 원정 | L7: (\) | M7: =N25+Q25 -> 3417700 | Q7: (VAT포함) | V7: 합계금액 | Y7: 일금 | AA7: =G7 -> 3417700 | AE7: 원정 | AF7: (\) | AG7: =M7 -> 3417700 | AK7: (VAT포함)
B8: 월/일 | D8: 품 목 | I8: 수량 | K8: 단 가 | N8: 공급가액 | Q8: 세 액 | V8: 월/일 | X8: 품 목 | AC8: 수량 | AE8: 단 가 | AH8: 공급가액 | AK8: 세 액
B9: 2025-07-11 | D9: 코어 i5-14400 | I9: 1 | N9: =IF(K9="","",(K9*I9)) ->  | Q9: =IF(K9="","",(N9/10)) ->  | V9: =IF(B9="","",(B9)) -> 2025-07-11 | X9: =IF(D9="","",(D9)) -> 코어 i5-14400 | AC9: =IF(I9="","",(I9)) -> 1 | AE9: =IF(K9="","",(K9)) ->  | AH9: =IF(N9="","",(N9)) ->  | AK9: =IF(Q9="","",(Q9)) -> 
D10: ICEROCK MA-410 | I10: 1 | N10: =IF(K10="","",(K10*I10)) ->  | Q10: =IF(K10="","",(N10/10)) ->  | X10: =IF(D10="","",(D10)) -> ICEROCK MA-410 | AC10: =IF(I10="","",(I10)) -> 1 | AE10: =IF(K10="","",(K10)) ->  | AH10: =IF(N10="","",(N10)) ->  | AK10: =IF(Q10="","",(Q10)) -> 
D11: [ASUS] PRIME B760M-A | I11: 1 | X11: [ASUS] PRIME B760M-A | AC11: 1
D12: DDR5 PC5-44800 16GB | I12: 2 | X12: DDR5 PC5-44800 16GB | AC12: 2
D13: P44 Pro NVMe 2280 512 | I13: 1 | X13: P44 Pro NVMe 2280 512 | AC13: 1
D14: RTX 3060 TWIN D6 8GB | I14: 1 | X14: RTX 3060 TWIN D6 8GB | AC14: 1
D15: [잘만] N10 [미니타워] | I15: 1 | X15: [잘만] N10 [미니타워] | AC15: 1
D16: 80PLUS STANDARD 650W | I16: 1 | K16: 1390000 | N16: 1390000 | Q16: 139000 | X16: 80PLUS STANDARD 650W | AC16: 1 | AE16: 1390000 | AH16: 1390000 | AK16: 139000
D17: 기가허브 기가공유기각각1 | I17: 1 | K17: 187000 | N17: 187000 | Q17: 18700 | X17: 기가허브 기가공유기각각1 | AC17: 1 | AE17: 187000 | AH17: 187000 | AK17: 18700
D18: 모니터27" | I18: 4 | K18: 170000 | N18: 680000 | Q18: 68000 | X18: 모니터27" | AC18: 4 | AE18: 170000 | AH18: 680000 | AK18: 68000
D19: 사무용컴퓨터 | I19: 1 | K19: 850000 | N19: 850000 | Q19: 85000 | X19: 사무용컴퓨터 | AC19: 1 | AE19: 850000 | AH19: 850000 | AK19: 85000
N20: =IF(K20="","",(K20*I20)) -> 
Q21: =IF(K21="","",(N21/10)) -> 
B25: 전잔금 | E25: \ | I25: 합계 | N25: =SUM(N9:P24) -> 3107000 | Q25: =SUM(Q9:R24) -> 310700 | V25: 전잔금 | Y25: \ | Z25: =IF(F25="","",(F25)) ->  | AC25: 합계 | AH25: =IF(N25="","",(N25)) -> 3107000 | AK25: =IF(Q25="","",(Q25)) -> 310700
B26: 입금 | D26: \ | H26: 잔금 | J26: \ | K26: =M7+F25-E26 -> 3417700 | O26: 인수자 | V26: 입금 | X26: \ | Y26: =IF(E26="","",(E26)) ->  | AB26: 잔금 | AD26: \ | AE26: =IF(K26="","",(K26)) -> 3417700 | AI26: 인수자 | AK26: =IF(Q26="","",(Q26)) -> 
B27: 농 협 204044-52-033018 박경희 (밀레니엄컴퓨터) | V27: =B27 -> 농 협 204044-52-033018 박경희 (밀레니엄컴퓨터)
B31: 권 | E31: 호 | G31: 거 래 명 세 표 | V31: =B31 -> 권 | Y31: =E31 -> 호 | AA31: 거 래 명 세 표
B32: 2025-01-16 | H32: 공급자 | I32: 등 록 번 호 | J32: 132-19-97819 | V32: =B32 -> 2025-01-16 | AB32: 공급자 | AC32: 등 록 번 호 | AD32: =J32 -> 132-19-97819
B33: 귀하 | I33: 상 호 | J33: 밀레니엄컴퓨터 | N33: 성명 | O33: 박 경 희 | V33: =B33 -> 귀하 | AC33: 상 호 | AD33: =J33 -> 밀레니엄컴퓨터 | AH33: 성명 | AI33: =O33 -> 박 경 희
B34: 아래와 같이 계산합니다 | I34: 사업장주 소 | V34: 아래와 같이 계산합니다 | AC34: 사업장주 소 | AD34: =J34 -> 0
I35: 업 태 | N35: 종목 | AC35: 업 태 | AD35: =J35 -> 0 | AH35: 종목 | AI35: =O35 -> 0
B36: 합계금액 | E36: 일금 | G36: =M36 -> 5120000 | K36: 원정 | L36: (\) | M36: =N54+Q54 -> 5120000 | Q36: (VAT포함) | V36: 합계금액 | Y36: 일금 | AA36: =G36 -> 5120000 | AE36: 원정 | AF36: (\) | AG36: =M36 -> 5120000 | AK36: (VAT포함)
B37: 월/일 | D37: 품 목 | I37: 수량 | K37: 단 가 | N37: 공급가액 | Q37: 세 액 | V37: 월/일 | X37: 품 목 | AC37: 수량 | AE37: 단 가 | AH37: 공급가액 | AK37: 세 액
I38: 4 | K38: 492000 | N38: =K38*I38 -> 1968000 | V38: =IF(B38="","",(B38)) ->  | X38: =IF(D38="","",(D38)) ->  | AC38: =IF(I38="","",(I38)) -> 4 | AE38: =IF(K38="","",(K38)) -> 492000 | AH38: =IF(N38="","",(N38)) -> 1968000 | AK38: =IF(Q38="","",(Q38)) -> 
N39: =K39*I39 -> 0 | X39: =IF(D39="","",(D39)) ->  | AC39: =IF(I39="","",(I39)) ->  | AE39: =IF(K39="","",(K39)) ->  | AH39: =IF(N39="","",(N39)) -> 0 | AK39: =IF(Q39="","",(Q39)) -> 
N40: 0 | AH40: 0
I41: 4 | K41: 788000 | N41: 3152000 | AC41: 4 | AE41: 788000 | AH41: 3152000
N42: 0 | AH42: 0
N43: 0 | AH43: 0
N44: 0 | AH44: 0
N45: 0 | AH45: 0
N46: 0 | AH46: 0
N47: 0 | AH47: 0
N48: 0 | AH48: 0
N49: 0 | AH49: 0
N50: 0 | AH50: 0
N51: 0 | Q51: =IF(K51="","",(N51/10)) ->  | AH51: 0
N52: 0 | AH52: 0
N53: =IF(K53="","",(K53*I53)) -> 
B54: 전잔금 | E54: \ | I54: 합계 | N54: =SUM(N38:P53) -> 5120000 | Q54: =SUM(Q38:R53) -> 0 | V54: 전잔금 | Y54: \ | Z54: =IF(F54="","",(F54)) ->  | AC54: 합계 | AH54: =IF(N54="","",(N54)) -> 5120000 | AK54: =IF(Q54="","",(Q54)) -> 0
B55: 입금 | D55: \ | H55: 잔금 | J55: \ | K55: =M36+F54-E55 -> 5120000 | O55: 인수자 | V55: 입금 | X55: \ | Y55: =IF(E55="","",(E55)) ->  | AB55: 잔금 | AD55: \ | AE55: =IF(K55="","",(K55)) -> 5120000 | AI55: 인수자 | AK55: =IF(Q55="","",(Q55)) -> 
B56: 국민은행 00000-00-00000 최 동 원 (대동컴퓨터) | V56: =B56 -> 국민은행 00000-00-00000 최 동 원 (대동컴퓨터)

Sheet 간이영수증
B2: No. | D2: 영 수 증 (공급받는자용) | M2: No. | O2: 영 수 증 (공급자용)
E4: 박경희 | J4: 귀하 | P4: =E4 -> 박경희 | U4: 귀하
B5: 공 급 자 | C5: 사업자 등록번호 | E5: 132-19-97819 | M5: 공 급 자 | N5: 사업자 등록번호 | P5: =E5 -> 132-19-97819
C6: 상호 | E6: 밀레니엄컴퓨터 | H6: 성 명 | I6: 박경희 | N6: 상호 | P6: 밀레니엄컴퓨터 중개사사무소 | S6: 성 명 | T6: 박경희 인
C7: 사업장 소재지 | E7: 남양주시 와부읍 덕소로 33-3 1층 103호 | N7: 사업장 소재지 | P7: 남양주시 와부읍 덕소로 33-3 1층 103호
C8: 업태 | E8: 도매및소매업 | G8: 종목 | H8: 사무기기.소프트웨어 | N8: 업태 | P8: 도매및소매업 | R8: 종목 | S8: 사무기기.소프트웨어
B9: 작성일자 | E9: 금액합계 | I9: 비고 | M9: 작성일자 | P9: 금액합계 | T9: 비고
B10: 2021-01-01 | E10: 1000000 | M10: =B10 -> 2021-01-01 | P10: =E10 -> 1000000 | T10: =IF(I10="","",(I10)) -> 
B11: 위 금액을 영수(청구)함. | M11: 위 금액을 영수(청구)함.
B12: 월/일 | D12: 품 목 | G12: 수량 | H12: 단 가 | J12: 금 액 | M12: 월/일 | O12: 품 목 | R12: 수량 | S12: 단 가 | U12: 금 액
B13: 2021-01-01 | D13: 본체 | G13: 1 | H13: 1000000 | J13: =IF(H13="","",(G13*H13)) -> 1000000 | M13: =IF(B13="","",(B13)) -> 2021-01-01 | O13: =IF(D13="","",(D13)) -> 본체 | R13: =IF(G13="","",(G13)) -> 1 | S13: =IF(H13="","",(H13)) -> 1000000 | U13: =IF(J13="","",(J13)) -> 1000000
J14: =IF(H14="","",(G14*H14)) ->  | M14: =IF(B14="","",(B14)) ->  | O14: =IF(D14="","",(D14)) ->  | R14: =IF(G14="","",(G14)) ->  | S14: =IF(H14="","",(H14)) ->  | U14: =IF(J14="","",(J14)) -> 
B27: 합 계 | F27: =SUM(J13:J26) -> 1000000 | M27: 합 계 | Q27: =F27 -> 1000000

Sheet 세금(입력)
B3: 공급자 | G3: 공급받는자
B5: 상호 | C5: 밀레니엄컴퓨터 | G5: 상호 | H5: 석운노인전문요양원
B6: 사업자등록번호 | C6: 132-19-97819 | G6: 사업자등록번호 | H6: 129-82-12083
B7: 대표자성명 | C7: 박 경 희 | G7: 대표자성명 | H7: 정 성 원
B8: 주소 | C8: 남양주시 와부읍 덕소로 33-3 | G8: 주소 | H8: 성남시 분당구 석운동 60-97
B9: 업태 | C9: 도매및소매업 | G9: 업태
B10: 종목 | C10: 사무기기.소프트웨어 | G10: 종목
G11: 비고 | H11: 농협(박경희) 204044-52-033018
B12: 자료입력
B14: 작성일,일시 | C14: 2024-11-28
C15: 품목 | D15: 규격 | E15: 수량 | F15: 단가 | G15: 공급가액 | H15: 부가세 | I15: 발행금액
B16: 품목 1 | C16: 컴퓨터본체 | E16: 1 | F16: 1028500 | G16: =(I16/1.1) -> 935000 | H16: =(I16-G16) -> 93500 | I16: =(F16*E16) -> 1028500
B17: 품목 2 | G17: =(I17/1.1) -> 0 | H17: =(I17-G17) -> 0 | I17: =(E17*F17) -> 0
B18: 품목 3 | G18: =(I18/1.1) -> 0 | H18: =(I18-G18) -> 0 | I18: =(E18*F18) -> 0
B19: 품목 4 | G19: =(I19/1.1) -> 0 | H19: =(I19-G19) -> 0 | I19: =(E19*F19) -> 0
B20: 합계금액 | G20: =ROUNDDOWN(SUM(G16:G19),0) -> 935000 | H20: =ROUNDDOWN(SUM(H16:H19),0) -> 93500 | I20: =SUM(I16:I19) -> 1028500
C22: 사용자가 입력할 부분
C23: 사용자가 입력을 하지않아도 되는부분

Sheet 세금(출력)
AG1: 3
A2: [별지 제11호 서식]
A3: 세 금 계 산 서 | P3: ( | Q3: 공급받는자 | V3: ) | W3: 책 번 호 | AC3: 권 | AF3: 호
Q4: 보 관 용 | W4: 일 련 번 호
A5: 공 급 자 | B5: 등록번호 | E5: =MID('세금(입력)'!C6,1,1) -> 1 | F5: =MID('세금(입력)'!C6,2,1) -> 3 | G5: =MID('세금(입력)'!C6,3,1) -> 2 | H5: - | I5: =MID('세금(입력)'!C6,5,1) -> 1 | J5: =MID('세금(입력)'!C6,6,1) -> 9 | K5: - | L5: =MID('세금(입력)'!C6,8,1) -> 9 | M5: =MID('세금(입력)'!C6,9,1) -> 7 | N5: =MID('세금(입력)'!C6,10,1) -> 8 | O5: =MID('세금(입력)'!C6,11,1) -> 1 | P5: =MID('세금(입력)'!C6,12,1) -> 9 | Q5: 공급받는자 | R5: 등록번호 | U5: =MID('세금(입력)'!H6,1,1) -> 1 | V5: =MID('세금(입력)'!H6,2,1) -> 2 | W5: =MID('세금(입력)'!H6,3,1) -> 9 | X5: - | Y5: =MID('세금(입력)'!H6,5,1) -> 8 | Z5: =MID('세금(입력)'!H6,6,1) -> 2 | AA5: - | AB5: =MID('세금(입력)'!H6,8,1) -> 1 | AC5: =MID('세금(입력)'!H6,9,1) -> 2 | AD5: =MID('세금(입력)'!H6,10,1) -> 0 | AE5: =MID('세금(입력)'!H6,11,1) -> 8 | AF5: =MID('세금(입력)'!H6,12,1) -> 3
B7: 상 호 | E7: ='세금(입력)'!C5 -> 밀레니엄컴퓨터 | K7: 성명 | L7: ='세금(입력)'!C7 -> 박 경 희 | P7: 인 | R7: 상 호 | U7: ='세금(입력)'!H5 -> 석운노인전문요양원 | AA7: 성명 | AB7: ='세금(입력)'!H7 -> 정 성 원 | AF7: 인
B8: (법인명) | R8: (법인명)
B9: 사 업 장 | E9: ='세금(입력)'!C8 -> 남양주시 와부읍 덕소로 33-3 | R9: 사 업 장 | U9: ='세금(입력)'!H8 -> 성남시 분당구 석운동 60-97
B10: 주 소 | R10: 주 소
B11: 업 태 | E11: ='세금(입력)'!C9 -> 도매및소매업 | K11: 종목 | L11: ='세금(입력)'!C10 -> 사무기기.소프트웨어 | R11: 업 태 | U11: ='세금(입력)'!H9 -> 0 | AA11: 종목 | AB11: ='세금(입력)'!H10 -> 0
A13: 작 성 | E13: 공 급 가 액 | R13: 세 액 | AB13: 비 고
A14: 년 | C14: 월 | D14: 일 | E14: 공란수 | G14: 백 | H14: 십 | I14: 억 | J14: 천 | K14: 백 | L14: 십 | M14: 만 | N14: 천 | O14: 백 | P14: 십 | Q14: 일 | R14: 십 | S14: 억 | T14: 천 | U14: 백 | V14: 십 | W14: 만 | X14: 천 | Y14: 백 | Z14: 십 | AA14: 일
A15: =YEAR('세금(입력)'!C14) -> 2024 | C15: =MONTH('세금(입력)'!C14) -> 11 | D15: =DAY('세금(입력)'!C14) -> 28 | E15: =COUNTBLANK(G15:Q15) -> 5 | G15: =IF(ISERROR(MID('세금(입력)'!G20,LEN('세금(입력)'!G20)-10,1)),"",MID('세금(입력)'!G20,LEN('세금(입력)'!G20)-10,1)) ->  | H15: =IF(ISERROR(MID('세금(입력)'!G20,LEN('세금(입력)'!G20)-9,1)),"",MID('세금(입력)'!G20,LEN('세금(입력)'!G20)-9,1)) ->  | I15: =IF(ISERROR(MID('세금(입력)'!G20,LEN('세금(입력)'!G20)-8,1)),"",MID('세금(입력)'!G20,LEN('세금(입력)'!G20)-8,1)) ->  | J15: =IF(ISERROR(MID('세금(입력)'!G20,LEN('세금(입력)'!G20)-7,1)),"",MID('세금(입력)'!G20,LEN('세금(입력)'!G20)-7,1)) ->  | K15: =IF(ISERROR(MID('세금(입력)'!G20,LEN('세금(입력)'!G20)-6,1)),"",MID('세금(입력)'!G20,LEN('세금(입력)'!G20)-6,1)) ->  | L15: =IF(ISERROR(MID('세금(입력)'!G20,LEN('세금(입력)'!G20)-5,1)),"",MID('세금(입력)'!G20,LEN('세금(입력)'!G20)-5,1)) -> 9 | M15: =IF(ISERROR(MID('세금(입력)'!G20,LEN('세금(입력)'!G20)-4,1)),"",MID('세금(입력)'!G20,LEN('세금(입력)'!G20)-4,1)) -> 3 | N15: =IF(ISERROR(MID('세금(입력)'!G20,LEN('세금(입력)'!G20)-3,1)),"",MID('세금(입력)'!G20,LEN('세금(입력)'!G20)-3,1)) -> 5 | O15: =IF(ISERROR(MID('세금(입력)'!G20,LEN('세금(입력)'!G20)-2,1)),"",MID('세금(입력)'!G20,LEN('세금(입력)'!G20)-2,1)) -> 0 | P15: =IF(ISERROR(MID('세금(입력)'!G20,LEN('세금(입력)'!G20)-1,1)),"",MID('세금(입력)'!G20,LEN('세금(입력)'!G20)-1,1)) -> 0 | Q15: =RIGHT('세금(입력)'!G20) -> 0 | R15: =IF(ISERROR(MID('세금(입력)'!H20,LEN('세금(입력)'!H20)-9,1)),"",MID('세금(입력)'!H20,LEN('세금(입력)'!H20)-9,1)) ->  | S15: =IF(ISERROR(MID('세금(입력)'!H20,LEN('세금(입력)'!H20)-8,1)),"",MID('세금(입력)'!H20,LEN('세금(입력)'!H20)-8,1)) ->  | T15: =IF(ISERROR(MID('세금(입력)'!H20,LEN('세금(입력)'!H20)-7,1)),"",MID('세금(입력)'!H20,LEN('세금(입력)'!H20)-7,1)) ->  | U15: =IF(ISERROR(MID('세금(입력)'!H20,LEN('세금(입력)'!H20)-6,1)),"",MID('세금(입력)'!H20,LEN('세금(입력)'!H20)-6,1)) ->  | V15: =IF(ISERROR(MID('세금(입력)'!H20,LEN('세금(입력)'!H20)-5,1)),"",MID('세금(입력)'!H20,LEN('세금(입력)'!H20)-5,1)) ->  | W15: =IF(ISERROR(MID('세금(입력)'!H20,LEN('세금(입력)'!H20)-4,1)),"",MID('세금(입력)'!H20,LEN('세금(입력)'!H20)-4,1)) -> 9 | X15: =IF(ISERROR(MID('세금(입력)'!H20,LEN('세금(입력)'!H20)-3,1)),"",MID('세금(입력)'!H20,LEN('세금(입력)'!H20)-3,1)) -> 3 | Y15: =IF(ISERROR(MID('세금(입력)'!H20,LEN('세금(입력)'!H20)-2,1)),"",MID('세금(입력)'!H20,LEN('세금(입력)'!H20)-2,1)) -> 5 | Z15: =IF(ISERROR(MID('세금(입력)'!H20,LEN('세금(입력)'!H20)-1,1)),"",MID('세금(입력)'!H20,LEN('세금(입력)'!H20)-1,1)) -> 0 | AA15: =RIGHT('세금(입력)'!H20) -> 0
A16: 월 | B16: 일 | C16: 품 목 | I16: 규격 | L16: 수량 | O16: 단 가 | T16: 공 급 가 액 | Z16: 세 액 | AE16: 비고
A17: =C15 -> 11 | B17: =D15 -> 28 | C17: ='세금(입력)'!C16 -> 컴퓨터본체 | I17: ='세금(입력)'!D16 -> 0 | L17: ='세금(입력)'!E16 -> 1 | O17: ='세금(입력)'!F16 -> 1028500 | T17: ='세금(입력)'!G16 -> 935000 | Z17: ='세금(입력)'!H16 -> 93500
C18: ='세금(입력)'!C17 -> 0 | I18: ='세금(입력)'!D17 -> 0 | L18: ='세금(입력)'!E17 -> 0 | O18: ='세금(입력)'!F17 -> 0 | T18: ='세금(입력)'!G17 -> 0 | Z18: ='세금(입력)'!H17 -> 0
C19: ='세금(입력)'!C18 -> 0 | I19: ='세금(입력)'!D18 -> 0 | L19: ='세금(입력)'!E18 -> 0 | O19: ='세금(입력)'!F18 -> 0 | T19: ='세금(입력)'!G18 -> 0 | Z19: ='세금(입력)'!H18 -> 0
C20: ='세금(입력)'!C19 -> 0 | I20: ='세금(입력)'!D19 -> 0 | L20: ='세금(입력)'!E19 -> 0 | O20: ='세금(입력)'!F19 -> 0 | T20: ='세금(입력)'!G19 -> 0 | Z20: ='세금(입력)'!H19 -> 0
A21: 합계금액 | F21: 현 금 | K21: 수 표 | P21: 어 음 | U21: 외상미수금 | Z21: 이 금액을 | AD21: =IF(AG1=3,"영수","청구") -> 영수 | AF21: 함
A22: ='세금(입력)'!I20 -> 1028500
A23: 22226-28131일 '96.3.27승인 | W23: 인쇄용지(특급)34g/m2 182mmx128mm
A24: 예금주 : 박경희(밀레니엄컴퓨터) 농 협 204044-52-033018
A27: [별지 제11호 서식]
A28: 세 금 계 산 서 | P28: ( | Q28: 공 급 자 | V28: ) | W28: 책 번 호 | AC28: 권 | AF28: 호
Q29: 보 관 용 | W29: 일 련 번 호
A30: 공 급 자 | B30: 등록번호 | E30: =E5 -> 1 | F30: =F5 -> 3 | G30: 2 | H30: - | I30: 1 | J30: 9 | K30: - | L30: 9 | M30: 7 | N30: 8 | O30: 1 | P30: 9 | Q30: 공급받는자 | R30: 등록번호 | U30: =U5 -> 1 | V30: =V5 -> 2 | W30: =W5 -> 9 | X30: - | Y30: =Y5 -> 8 | Z30: =Z5 -> 2 | AA30: - | AB30: =AB5 -> 1 | AC30: =AC5 -> 2 | AD30: =AD5 -> 0 | AE30: =AE5 -> 8 | AF30: =AF5 -> 3
B32: 상 호 | E32: =E7 -> 밀레니엄컴퓨터 | K32: 성명 | L32: =L7 -> 박 경 희 | P32: 인 | R32: 상 호 | U32: =U7 -> 석운노인전문요양원 | AA32: 성명 | AB32: =AB7 -> 정 성 원 | AF32: 인
B33: (법인명) | R33: (법인명)
B34: 사 업 장 | E34: =E9 -> 남양주시 와부읍 덕소로 33-3 | R34: 사 업 장 | U34: =U9 -> 성남시 분당구 석운동 60-97
B35: 주 소 | R35: 주 소
B36: 업 태 | E36: =E11 -> 도매및소매업 | K36: 종목 | L36: =L11 -> 사무기기.소프트웨어 | R36: 업 태 | U36: =U11 -> 0 | AA36: 종목 | AB36: =AB11 -> 0
A38: 작 성 | E38: 공 급 가 액 | R38: 세 액 | AB38: 비 고
A39: 년 | C39: 월 | D39: 일 | E39: 공란수 | G39: 백 | H39: 십 | I39: 억 | J39: 천 | K39: 백 | L39: 십 | M39: 만 | N39: 천 | O39: 백 | P39: 십 | Q39: 일 | R39: 십 | S39: 억 | T39: 천 | U39: 백 | V39: 십 | W39: 만 | X39: 천 | Y39: 백 | Z39: 십 | AA39: 일 | AB39: =AB14 -> 0
A40: =A15 -> 2024 | C40: =C15 -> 11 | D40: =D15 -> 28 | E40: =E15 -> 5 | G40: =G15 ->  | H40: =H15 ->  | L40: 9 | M40: 3 | N40: 5 | O40: 0 | P40: 0 | Q40: 0 | W40: 9 | X40: 3 | Y40: 5 | Z40: 0 | AA40: 0
A41: 월 | B41: 일 | C41: 품 목 | I41: 규격 | L41: 수량 | O41: 단 가 | T41: 공 급 가 액 | Z41: 세 액 | AE41: 비고
A42: =A17 -> 11 | B42: =B17 -> 28 | C42: =C17 -> 컴퓨터본체 | I42: =I17 -> 0 | L42: =L17 -> 1 | O42: =O17 -> 1028500 | T42: =T17 -> 935000 | Z42: =Z17 -> 93500 | AE42: =AE17 -> 0
A43: =A18 -> 0 | B43: 0 | C43: 0 | I43: =I18 -> 0 | L43: =L18 -> 0 | O43: =O18 -> 0 | T43: =T18 -> 0 | Z43: =Z18 -> 0
A44: 0 | B44: 0 | C44: 0 | I44: =I19 -> 0 | L44: =L19 -> 0 | O44: =O19 -> 0 | T44: =T19 -> 0 | Z44: =Z19 -> 0
A45: 0 | B45: 0 | C45: 0 | I45: =I20 -> 0 | L45: =L20 -> 0 | O45: =O20 -> 0 | T45: =T20 -> 0 | Z45: =Z20 -> 0
A46: 합계금액 | F46: 현 금 | K46: 수 표 | P46: 어 음 | U46: 외상미수금 | Z46: 이 금액을 | AD46: =IF(AG1=3,"영수","청구") -> 영수 | AF46: 함
A47: =A22 -> 1028500 | F47: =F22 -> 0 | K47: =K22 -> 0 | P47: =P22 -> 0 | U47: =U22 -> 0
A48: 22226-28131일 '96.3.27승인 | U48: 인쇄용지(특급)34g/m2 182mmx128mm
